Cogmind - Beta 10.2 *** ADVENTURER MODE // 2022.01.03 @ 13:05:17 Player: IzRey Result: Destroyed by G-47 Trooper with Particle Gun Performance ------------- Evolutions (0) 0 Regions Visited (1) 200 Robots Destroyed (11) 55 Value Destroyed (230) 230 Prototype IDs (0) 0 Alien Tech Used (0) 0 Bonus (0) 0 TOTAL SCORE: 485 Bonus ------- None Cogmind --------- Core Integrity 0/250 Matter 300/300 Energy 100/100 System Corruption 0% Temperature Cool (9) Movement Core (550) Ox10 Location -10/Materials Parts ------- > --- POWER (1) -------- (None) > --- PROPULSION (2) --- (None) > --- UTILITY (2) ------ High-capacity Storage Unit Utility Shielding > --- WEAPON (2) ------- (None) > --- INVENTORY (12) --- Light Ion Engine Signal Interpreter Peak State ------------ > --- POWER ------------ Light Ion Engine > --- PROPULSION ------- Light Treads Light Treads > --- UTILITY ---------- High-capacity Storage Unit Utility Shielding > --- WEAPON ----------- Light Assault Rifle Light Assault Rifle > --- INVENTORY -------- Light Ion Engine [Rating: 7] Favorites ----------- Power Light Ion Engine Engine Light Ion Engine Propulsion Light Treads Treads Light Treads Utility Utility Shielding Storage High-capacity Storage Unit Protection Utility Shielding Weapon Light Assault Rifle Ballistic Gun Light Assault Rifle Launcher Grenade Launcher Build | -11 -10 ------- Run | Scr Mat Slots Evolved . | . . Power . | . . Propulsion . | . . Utility . | . . Weapon . | . . Parts Attached 10 | 4 6 Power 1 | 1 . Engine 1 | 1 . Core . | . . Reactor . | . . Propulsion 2 | 2 . Treads 2 | 2 . Leg . | . . Wheel . | . . Hover . | . . Flight . | . . Utility 2 | . 2 Device . | . . Storage 1 | . 1 Processor . | . . Hackware . | . . Protection 1 | . 1 Artifact . | . . Weapon 5 | 1 4 Energy Gun . | . . Energy Cannon . | . . Ballistic Gun 4 | 1 3 Ballistic Cannon . | . . Launcher 1 | . 1 Special Weapon . | . . Impact Weapon . | . . Slashing Weapon . | . . Piercing Weapon . | . . Special Melee Weapon . | . . Unidentified Prototypes . | . . Parts Lost 7 | . 7 Power 1 | . 1 Propulsion 2 | . 2 Utility . | . . Weapon 4 | . 4 Highest Loss Streak 5 | . 5 Average Slot Usage (%) 88 | . 88 Engine 13 | . 13 Treads 26 | . 26 Storage 12 | . 12 Protection 12 | . 12 Ballistic Gun 15 | . 15 Launcher 6 | . 6 Naked Turns . | . . Heaviest Build 40 | 4 40 Greatest Support 40 | 40 40 Greatest Overweight (x) 11 | 1 11 Average Overweight (x) . | . . Largest Inventory Capacity 12 | 4 12 Average Capacity 10 | 4 10 Most Carried 3 | 1 3 Average Carried 2 | . 2 Final Capacity 12 | 4 12 Final Carried 2 | 1 2 Class Distribution -------------------- 100% | Mutant Dominant Class ---------------- Mutant | -10/Materials Resources | -11 -10 ----------- Run | Scr Mat Matter Collected 347 | 206 141 Remotely . | . . Salvage Created 271 | . 271 Parts 30 | . 30 Haulers Intercepted . | . . Recyclers Shooed . | . . Parts Field Recycled . | . . Retrieved Matter . | . . Parts Self-Destructed . | . . Prevented . | . . Kills | -11 -10 ------- Run | Scr Mat Combat Hostiles Destroyed 11 | . 11 Guns 10 | . 10 AOE 1 | . 1 Classes Destroyed 2 | . 2 Swarmer 6 | . 6 Grunt 5 | . 5 Best Kill Streak 3 | . 3 Combat Bots Only 3 | . 3 Max Kills in Single Turn 1 | . 1 Gunslinging . | . . Exploded 1 | . 1 Melee . | . . Uniques/NPCs Destroyed . | . . Combat | -11 -10 -------- Run | Scr Mat Damage Taken 1000 | . 1000 Core 253 | . 253 Absorbed by Shields . | . . Core Remaining (%) 100 | 100 . Volleys Fired 62 | . 62 Largest 2 | . 2 Hottest 50 | . 50 Shots Fired 63 | . 63 Gun 62 | . 62 Cannon . | . . Launcher 1 | . 1 Special . | . . Kinetic 62 | . 62 Thermal . | . . Explosive 1 | . 1 Electromagnetic . | . . Robot Hit Streak 44 | . 44 Robot Miss Streak 2 | . 2 Penetration Max . | . . Secondary Targets . | . . Shots Hit Robots 60 | . 60 Core Hits 24 | . 24 Critical Hits 1 | . 1 Critical Kills 1 | . 1 Critical Parts Destroyed . | . . Melee Attacks . | . . Impact . | . . Slashing . | . . Piercing . | . . Sneak Attacks . | . . Combat Hostiles . | . . Follow-up Attacks . | . . Damage Inflicted 521 | . 521 Guns 464 | . 464 Cannons . | . . Explosions 57 | . 57 Melee . | . . Ramming . | . . Kinetic 464 | . 464 Thermal . | . . Explosive 57 | . 57 Electromagnetic . | . . Impact . | . . Slashing . | . . Piercing . | . . Highest Corruption . | . . Average Corruption . | . . Corruption Purged . | . . Overload Shots . | . . Overflow Damage . | . . Projectiles . | . . Explosions . | . . Melee . | . . Knockbacks . | . . Impact . | . . Kinetic . | . . Secondary . | . . Self-Inflicted Damage 19 | . 19 Shots 1 | . 1 Rammed . | . . Targets Rammed . | . . Kicked . | . . Crushed . | . . Highest Temperature 16 | . 16 Average Temperature 7 | . 7 Received Heat Transfer 480 | . 480 Siege Activations . | . . Robots Corrupted . | . . Combat Hostiles . | . . Parts Fried . | . . Impact Corruptions . | . . Robots Melted . | . . Combat Hostiles . | . . Parts Melted . | . . Heat Transferred . | . . Parts Sabotaged . | . . Parts Stolen . | . . Parts Stripped . | . . Power Chain Reactions . | . . Missiles Intercepted . | . . Alert | -11 -10 ------- Run | Scr Mat Peak Influence 145 | . 145 Initial . | . . Average 62 | . 68 Maximum Alert Level . | . . Low Security (%) 100 | 100 100 Level 1 . | . . Level 2 . | . . Level 3 . | . . Level 4 . | . . Level 5 . | . . High Security . | . . Max Security . | . . Squads Dispatched . | . . Investigation . | . . Extermination . | . . Reinforcement . | . . Assault . | . . Garrison . | . . Intercept . | . . Construction Impeded . | . . Haulers Reinforced . | . . Stealth | -11 -10 --------- Run | Scr Mat Distress Signals 1 | . 1 Communications Jammed . | . . Distress Signals . | . . Times Spotted 13 | . 13 Peak Tracking Total 5 | . 5 Tactical Retreats . | . . Traps | -11 -10 ------- Run | Scr Mat Traps Triggered 1 | . 1 Indirectly . | . . Trap Hack Attempts . | . . Triggered . | . . Disarmed . | . . Reprogrammed . | . . Reused . | . . Traps Extracted . | . . Installed . | . . Triggered . | . . Machines | -11 -10 ---------- Run | Scr Mat Machines Disabled . | . . Max in Single Turn . | . . Machines Sabotaged . | . . Garrisons Compromised . | . . Overloaded Fab Kills . | . . Fab Network Shutdowns . | . . Hacking | -11 -10 --------- Run | Scr Mat Machines Accessed 1 | . 1 Terminals 1 | . 1 Fabricators . | . . Repair Stations . | . . Recycling Units . | . . Scanalyzers . | . . Garrison Access . | . . Total Hacks 4 | . 4 Successful 3 | . 3 Failed 1 | . 1 Catastrophic . | . . Database Lockouts . | . . Manual 3 | . 3 Terminals 4 | . 4 Fabricators . | . . Repair Stations . | . . Recycling Units . | . . Scanalyzers . | . . Garrison Access . | . . Terminal Hacks 3 | . 3 Robot Analysis 1 | . 1 Level Access Points 1 | . 1 Branch Access Points 1 | . 1 Fabricator Hacks . | . . Repair Station Hacks . | . . Recycling Unit Hacks . | . . Scanalyzer . | . . Garrison Access Hacks . | . . Unauthorized Hacks . | . . Terminals . | . . Fabricators . | . . Repair Stations . | . . Recycling Units . | . . Scanalyzers . | . . Garrison Access . | . . Data Cores Recovered . | . . Used . | . . Hacking Detections 1 | . 1 Full Trace Events . | . . Feedback Events . | . . Feedback Blocked . | . . Robot Schematics Acquired . | . . Robots Built . | . . Matter . | . . Time . | . . Total Robot Build Rating . | . . Part Schematics Acquired . | . . Parts Built . | . . Matter . | . . Time . | . . Total Part Build Rating . | . . Parts Repaired . | . . Time . | . . Parts Recycled . | . . Recycled Matter . | . . Retrieved Matter . | . . Retrieved Components . | . . Parts Scanalyzed . | . . Part Schematics Acquired . | . . Parts Damaged . | . . Bothacking | -11 -10 ------------ Run | Scr Mat Used RIF Installer . | . . Robots Hacked . | . . Non-combat . | . . Combat . | . . Robot Hacks Applied . | . . Relay Couplers Released . | . . Robots Rewired . | . . Allies Hacked . | . . Hacks Repelled . | . . Allies | -11 -10 -------- Run | Scr Mat Total Allies . | . . Largest Group . | . . Highest-Rated Group . | . . Highest-Rated Ally . | . . Total Orders . | . . Ally Attacks . | . . Total Damage . | . . Kills . | . . Allies Corrupted . | . . Allies Melted . | . . Intel | -11 -10 ------- Run | Scr Mat Robot Analysis Total 1 | . 1 Derelict Logs Recovered . | . . Drone Launches . | . . Drone Recoveries . | . . Exploration | -11 -10 ------------- Run | Scr Mat Turns Passed 839 | 75 764 Spaces Moved 437 | 51 386 Core 16 | 12 4 Treads 421 | 39 382 Legs . | . . Wheels . | . . Hover . | . . Flight . | . . Fastest Speed 50 | 50 160 Average Speed 161 | 136 164 Slowest Speed 600 | 160 600 Overloaded Moves . | . . Propulsion Burnouts . | . . Robots Hopped . | . . Cave-ins Triggered . | . . Exploration Rate (%) 17 | 4 31 Regions Visited 1 Branch Regions . Pre-discovered Areas . | . . Known Exits Taken . | . . Unknown Exits Taken 1 | 1 . Scrap Searched . | . . Spaces Dug . | . . Terrain Destroyed 7 | . 7 Melee . | . . Projectile . | . . AOE 7 | . 7 Terrain Rammed . | . . Walls Destroyed . | . . Machines Disabled . | . . Actions | -11 -10 --------- Run | Scr Mat Total 518 | 55 463 Wait 7 | . 7 Move 436 | 50 386 Hop . | . . Pick Up 2 | 1 1 Fast Attach 9 | 4 5 Attach 1 | . 1 Detach 1 | . 1 Swap . | . . Drop . | . . Fire 62 | . 62 Melee . | . . Ram . | . . Kick . | . . Crush . | . . Escape Stasis . | . . Rewire . | . . Trap . | . . Miscellaneous . | . . Route ------- -11/Scrapyard -10/Materials (discovered 5 exits: Mat x3 / *Min x2) History --------- Turn | Location | Event 10 | -11/Scrapyard | Discovered new exit (range 15) 76 | -11/Scrapyard | Entered Materials 291 | -10/Materials | Discovered new exit (range 4) 313 | -10/Materials | Build established: Mutant 315 | -10/Materials | Identified exit to Materials 315 | -10/Materials | Identified exit to Mines 775 | -10/Materials | Core integrity fell below 50% 822 | -10/Materials | Core integrity fell below 20% 840 | -10/Materials | Destroyed by G-47 Trooper with Particle Gun Last Messages --------------- 00666_ K-01 Serf collects debris. 00700_ K-01 Serf cleans the Fusion Modulator. 00734_ W-16 Scout distress signal alerts nearby ally. 00737_ G-34 Mercenary destroyed. 00741_ Lgt. Assault Rifle destroyed. 00744_ S-10 Pest destroyed. 00751_ K-01 Serf collects debris. 00760_ Acquired 14 matter. 00766_ Acquired 1 matter. 00770_ S-10 Pest destroyed. 00771_ Acquired 1 matter. 00778_ Lgt. Assault Rifle destroyed. 00787_ Acquired Lgt. Assault Rifle. 00791_ Lgt. Treads destroyed. 00792_ S-10 Pest destroyed. 00805_ Lgt. Treads destroyed. 00817_ Lgt. Assault Rifle destroyed. 00817_ Acquired 10 matter. 00834_ Lgt. Ion Engine destroyed. 00838_ K-01 Serf collects debris. Map ----- +----------------------------------------------------+ | ?????????????????????????????????????????????????? | | ?????????????????????????????????????????????????? | | ?????????????????????????????????????????????????? | | ?????????????????????????????????????????????????? | | ?????????????????????????????????????????????????? | | ??????????????????????????????????????#####??????? | | ?????????????????###????#######???????# #??????? | | ?????????????????# ??# ######### #??????? | | ?????????????????# !] # #??????? | | ?????????????????# ! + #??????? | | ?????????????????# # #??????? | | ?????????????????# "??# ######### ######## | | ?????????????????# ????## ##???????# # | | ??????????????#??#???????# #????????# # | | ??????????????# ?????????# #????????# # | | ??????????????# ?????????# #????????# # | | ??????????????# #####???## ##???????# + | | ??????????????# ##### #???????# # | | ??????????????# = #???????# # | | ??????????????# T ==* ######### # | | ??????????????# [=%! ## # # | | ??????????????# %##### ## # ######## | | ??????????????## ##?#####+#### # #??????? | | ???????????????# #??# k=* # # #??????? | | ???????????????# #??#% g""" # # #??????? | | ???????????????# #??# %@""" # # #??????? | | ???????????????# #??# =%""" # [# #??????? | | ??????????????? "??# #==! # ##?????? | | ??????????????# ??# """ #=!! # ##?????? | | ??????????????# ??# """ #=!! # ##?????? | | ??????????????# > ??# """ # + ##?????? | | ??????????????# ??# # ! # ######## | | ??????????????# ??########## # ## | | ??????????????# "???????????######## ## """ ! | | ??????????????## #??????????######## # """ | | ???????????????# ???????????# T ! # # """ | | ???????????????+ ???????????# # + | | ???????????????? ???????????# """ # # """ | | ??????????????????????????????# """ # # """ | | ??????????????????????????????# """ ## ## """ | | ??????????????????????????????# ## ## | | ??????????????????????????#######+##### ######## | | ??????????????????????????# # #???#= #??????? | | ??????????????????????????# # #####%= #??????? | | ??????????????????????????# # ## * #??????? | | ??????????????????????????# > + ! #??????? | | ??????????????????????????# #### = #######?? | | ??????????????????????????# ## #?? | | ??????????????????????????# ## #?? | | ??????????????????????????######## """ """ """ #?? | +----------------------------------------------------+ Best States ------------- Heat Dissipation 25 Energy Generation 10 Energy Capacity 125 Matter Stores 300 Matter Capacity 300 Sight Range 16 Terrain Scan Density 10 Resistance: KI 20 Resistance: TH 20 Resistance: EX 20 Resistance: EM 20 Resistance: I 20 Resistance: S 20 Resistance: P 20 Utility Shielding 33 Evasion (%) 40 Recoil Reduction 2 Offensive Hacking 10 Item Schematics ----------------- None Robot Schematics ------------------ None Fabricated ------------ Nothing Alien Tech Used ----------------- None Achievements -------------- None Challenges ------------ None Game ------ Seed VisualEnhancedDerivative Manual? 0 Play Time 00:09:14 Cumulative 6.0 hours Start 2022.01.03 @ 12:58:23 End 2022.01.03 @ 13:05:17 Sessions 1 Manual Loads 0 Difficulty Adventurer Special Mode None Game No. 7 Rogue 0 Adventurer 7 Explorer 0 Win Type - Total 0 Types 0/0/0/0/0/0/0/0/0 Lore% 11 Gallery% 12 Achievement% 8 Wizard Run 0 Options --------- ASCII 0 Keyboard 1 Movement Vi Keybinds 0 Fullscreen 1 Font 20/SmallcapsGlow Map View 66x50 Tactical HUD 1 Map Filters NONE Filters NONE Steam 1 RUN: 1efa998e-c1ce-4b9f-9976-eb5c220cf8f5